[Event "Memorial Ukrainian Chess Warriors 2024"]
[Site "Lviv"]
[Date "2024.03.15"]
[Round "8.9"]
[White "Medvedyk, Vasyl"]
[Black "Ivanov, Taras"]
[Result "1-0"]
[ECO "B20"]
[WhiteElo "1957"]
[BlackElo "1831"]
[Annotator "RC"]
[PlyCount "114"]
[EventDate "2024.03.06"]
[EventType "swiss"]
[EventCountry "UKR"]
[SourceTitle "playchess.com"]
[Source "ChessBase"]
[SourceQuality "1"]
[TimeControl "600+5"]

1. e4 {[%emt 0:00:01]} c5 {[%emt 0:00:01]} 2. a3 {[%emt 0:00:01]} e6 {[%emt 0:00:02]} 3. b4 {[%emt 0:00:03]} cxb4 {[%emt 0:00:01]} 4. axb4 {[%emt 0:00:01]} Nf6 {[%emt 0:00:03]} 5. e5 {[%emt 0:01:57]} Nd5 {[%emt 0:00:19]} 6. c3 {[%emt 0:00:03]} d6 {[%emt 0:00:58]} 7. Nf3 {[%emt 0:01:02]} dxe5 {[%emt 0:01:13]} 8. Nxe5 {[%emt 0:00:05]} Bd6 {[%emt 0:00:09]} 9. Bb5+ {[%emt 0:01:14]} Nd7 {[%emt 0:00:27]} 10. Nxd7 {[%emt 0:00:22]} Bxd7 {[%emt 0:00:02]} 11. Bxd7+ {[%emt 0:00:23]} Qxd7 {[%emt 0:00:02]} 12. O-O {[%emt 0:00:08]} O-O {[%emt 0:00:08]} 13. d4 {[%emt 0:00:35]} Qc7 {[%emt 0:00:11]} 14. Qd3 {[%emt 0:02:30]} Bxh2+ {[%emt 0:00:18]} 15. Kh1 {[%emt 0:00:01]} Bf4 {[%emt 0:00:41]} 16. Bxf4 {[%emt 0:01:05]} Qxf4 {[%emt 0:00:12]} 17. b5 {[%emt 0:00:14]} Rfd8 {[%emt 0:00:57]} 18. Kg1 {[%emt 0:00:20]} e5 {[%emt 0:00:57]} 19. Ra4 {[%emt 0:00:43]} Nb6 {[%emt 0:00:46]} 20. Rb4 exd4 {[%emt 0:01:13]} 21. Rxd4 {[%emt 0:00:25]} Rxd4 {[%emt 0:00:05]} 22. cxd4 {[%emt 0:00:01]} Rd8 {[%emt 0:00:24]} 23. Qa3 {[%emt 0:00:01]} Nc8 {[%emt 0:00:30]} 24. Nc3 {[%emt 0:00:24]} Qxd4 {[%emt 0:00:40]} 25. Re1 {[%emt 0:00:20]} h6 {[%emt 0:00:16]} 26. g3 {[%emt 0:00:06]} Qd6 {[%emt 0:00:19]} 27. Qa2 {[%emt 0:00:07]} Qb4 {[%emt 0:00:21]} 28. Re3 {[%emt 0:00:02]} Qd6 {[%emt 0:00:14]} 29. Rf3 {[%emt 0:00:09]} Qe6 30. Qa5 Re8 {[%emt 0:00:31]} 31. Qc7 {[%emt 0:00:04]} Qe7 {[%emt 0:00:15]} 32. Qa5 {[%emt 0:00:10]} Qd7 {[%emt 0:00:08]} 33. Kf1 {[%emt 0:00:03]} Qg4 {[%emt 0:00:12]} 34. Kg2 {[%emt 0:00:06]} Qc4 {[%emt 0:00:04]} 35. Rf4 {[%emt 0:00:05]} Qe6 {[%emt 0:00:07]} 36. Rf3 {[%emt 0:00:04]} a6 {[%emt 0:00:04]} 37. bxa6 {[%emt 0:00:03]} bxa6 {[%emt 0:00:05]} 38. Nd5 {[%emt 0:00:03]} Qd7 {[%emt 0:00:10]} 39. Qa2 {[%emt 0:00:13]} Rd8 {[%emt 0:00:05]} 40. Nc3 {[%emt 0:00:04]} Qc6 {[%emt 0:00:02]} 41. Qxf7+ {[%emt 0:00:03]} Kh8 {[%emt 0:00:01]} 42. Qf4 {[%emt 0:00:05]} Ne7 {[%emt 0:00:08]} 43. Kh2 {[%emt 0:00:02]} Ng6 {[%emt 0:00:09]} 44. Qf5 {[%emt 0:00:06]} Rf8 {[%emt 0:00:04]} 45. Qxg6 {[%emt 0:00:10]} Qxf3 {[%emt 0:00:08]} 46. Ne4 {[%emt 0:00:02]} Qf5 {[%emt 0:00:02]} 47. Qc6 {[%emt 0:00:02]} a5 {[%emt 0:00:06]} 48. Qa4 {[%emt 0:00:10]} Qe5 {[%emt 0:00:06]} 49. Kg1 {[%emt 0:00:02]} Re8 {[%emt 0:00:03]} 50. f3 {[%emt 0:00:08]} Rc8 {[%emt 0:00:05]} 51. Qd7 {[%emt 0:00:03]} Rc1+ {[%emt 0:00:07]} 52. Kg2 {[%emt 0:00:00]} Qb2+ {[%emt 0:00:05]} 53. Kh3 {[%emt 0:00:04]} Rh1+ {[%emt 0:00:05]} 54. Kg4 {[%emt 0:00:01]} h5+ {[%emt 0:00:04]} 55. Kf4 {[%emt 0:00:02]} Qc1+ {[%emt 0:00:01]} 56. Kf5 {[%emt 0:00:03]} Kh7 {[%emt 0:00:13]} 57. Ng5+ {[%emt 0:00:09]} Kh6 {[%emt 0:00:11]} 1-0

[Event "Memorial Ukrainian Chess Warriors 2024"]
[Site "Lviv"]
[Date "2024.03.15"]
[Round "8.10"]
[White "Masnyak, Yuriy"]
[Black "Lornye, Pylyp"]
[Result "1/2-1/2"]
[ECO "B38"]
[WhiteElo "1785"]
[BlackElo "2147"]
[Annotator "RC"]
[PlyCount "63"]
[EventDate "2024.03.06"]
[EventType "swiss"]
[EventCountry "UKR"]
[SourceTitle "playchess.com"]
[Source "ChessBase"]
[SourceQuality "1"]
[TimeControl "600+5"]

1. e4 {[%emt 0:00:02]} c5 {[%emt 0:00:01]} 2. Nf3 {[%emt 0:00:01]} Nc6 {[%emt 0:00:02]} 3. d4 {[%emt 0:00:01]} cxd4 {[%emt 0:00:12]} 4. Nxd4 {[%emt 0:00:00]} g6 {[%emt 0:00:02]} 5. c4 {[%emt 0:00:05]} Bg7 {[%emt 0:00:02]} 6. Be3 {[%emt 0:00:01]} Nf6 {[%emt 0:00:33]} 7. Nc3 {[%emt 0:00:01]} d6 {[%emt 0:00:03]} 8. Be2 {[%emt 0:00:02]} O-O {[%emt 0:00:14]} 9. O-O {[%emt 0:00:01]} Bd7 {[%emt 0:00:07]} 10. Kh1 {[%emt 0:00:42]} Rc8 {[%emt 0:00:49]} 11. Rc1 {[%emt 0:00:11]} Ne5 {[%emt 0:00:46]} 12. b3 {[%emt 0:00:22]} Neg4 {[%emt 0:00:29]} 13. Bg5 {[%emt 0:00:03]} Qa5 {[%emt 0:00:37]} 14. Bh4 {[%emt 0:00:42]} Bh6 {[%emt 0:00:54]} 15. Rc2 {[%emt 0:00:56]} Bf4 {[%emt 0:00:52]} 16. h3 {[%emt 0:00:52]} g5 {[%emt 0:01:11]} 17. hxg4 {[%emt 0:01:24]} gxh4 {[%emt 0:00:02]} 18. Nd5 {[%emt 0:00:12]} Nxd5 {[%emt 0:00:20]} 19. exd5 {[%emt 0:00:01]} e5 {[%emt 0:00:33]} 20. Nf5 {[%emt 0:01:05]} Bxf5 {[%emt 0:00:03]} 21. gxf5 {[%emt 0:00:01]} Qd8 {[%emt 0:00:02]} 22. Bd3 {[%emt 0:01:30]} Qg5 {[%emt 0:00:24]} 23. Qf3 {[%emt 0:00:19]} Qh6 {[%emt 0:00:11]} 24. Qh3 {[%emt 0:00:39]} f6 {[%emt 0:00:35]} 25. Be4 {[%emt 0:00:47]} Rf7 {[%emt 0:00:08]} 26. g3 {[%emt 0:00:16]} hxg3 27. Qxh6 Bxh6 {[%emt 0:00:48]} 28. fxg3 {[%emt 0:00:09]} Rg7 {[%emt 0:00:01]} 29. Kh2 {[%emt 0:00:12]} Rg4 {[%emt 0:00:13]} 30. Re2 {[%emt 0:00:21]} Kf7 {[%emt 0:00:09]} 31. Rd1 {[%emt 0:00:46]} Rcg8 {[%emt 0:00:25]} 32. Rd3 {[%emt 0:00:01]} 1/2-1/2

[Event "Memorial Ukrainian Chess Warriors 2024"]
[Site "Lviv"]
[Date "2024.03.15"]
[Round "8.11"]
[White "Bagiryan, Vigen"]
[Black "Petursson, Margeir"]
[Result "0-1"]
[ECO "B23"]
[WhiteElo "1969"]
[BlackElo "2344"]
[Annotator "TA"]
[PlyCount "108"]
[EventDate "2024.03.06"]
[EventType "swiss"]
[EventCountry "UKR"]
[SourceTitle "playchess.com"]
[Source "ChessBase"]
[SourceQuality "1"]
[TimeControl "600+5"]

{[%evp 11,108,0,7,-39,-13,-19,-17,-18,0,-3,21,12,31,29,28,27,35,46,28,21,35,32,22,34,38,31,31,-97,-94,-78,-87,-79,-57,-68,-58,-120,-85,-102,-79,-104,-95,-374,-37,-22,0,0,-7,-185,-169,-246,-91,-100,-97,-109,-100,-95,-107,-102,-51,-74,-34,-200,-194,-172,-152,-189,-116,-795,-783,-29971,-29973,-29974,-29974,-29975,-29976,-29976,-29976,-29979,-29979,-29979,-29980,-29978,-29975,-29980,-29971,-29983,-29984,-29986,-29987,-29987,-29988,-29991,-29992,-29993,-29993,-29993,-29990,-29992,-29990]} 1. e4 {[%emt 0:00:03]} c5 {[%emt 0:00:01]} 2. Nc3 {[%emt 0:00:04]} g6 {[%emt 0:00:02]} 3. g3 {[%emt 0:00:03]} Bg7 {[%emt 0:00:03]} 4. Bg2 {[%emt 0:00:01]} Nc6 {[%emt 0:00:04]} 5. Nge2 {[%emt 0:00:02]} e6 {[%emt 0:00:13]} 6. d3 {[%emt 0:00:12]} Nge7 {[%emt 0:00:09]} 7. f4 {[%emt 0:00:42]} (7. Bg5 $11 {war vorzuziehen.}) 7... d6 {[%emt 0:00:10]} 8. Be3 {[%emt 0:00:11]} Nd4 {[%emt 0:00:05]} 9. Bf2 {[%emt 0:00:02] Die Stellung ist ausgeglichen.} Bd7 {[%emt 0:00:24]} 10. O-O {[%emt 0:00:23]} Bc6 {[%emt 0:00:04]} 11. Nxd4 {[%emt 0:00:26]} cxd4 {[%emt 0:00:08]} 12. Ne2 {[%emt 0:00:02]} e5 {[%emt 0:00:08]} 13. c3 {[%emt 0:00:02]} dxc3 {[%emt 0:00:05]} 14. bxc3 {[%emt 0:00:02]} O-O {[%emt 0:01:14]} 15. Rb1 {[%emt 0:00:38]} d5 {[%emt 0:00:24]} 16. fxe5 {[%emt 0:00:10]} dxe4 17. d4 {[%emt 0:00:27]} Nf5 {[%emt 0:01:38][%cal Be7f5,Bf5h4,Bh4f3][%mdl 32]} 18. g4 {[%emt 0:02:24]} Nh4 {[%emt 0:00:22]} 19. Be3 {[%emt 0:02:16]} (19. Bxh4 $14 {bleibt weiter vorne.} Qxh4 20. Ng3) 19... Nf3+ $17 {[%emt 0:00:50]} 20. Kh1 {[%emt 0:00:18]} Qh4 {[%emt 0:00:36][%csl Gf3][%cal Rh4h2]} 21. h3 {[%emt 0:00:31]} Rad8 {[%emt 0:00:20] Droht ...Bxe5 und aus.} 22. Qc1 {[%emt 0:00:20]} f5 {[%emt 0:00:36] Schwarz steht deutlich aktiver.} 23. exf6 {[%emt 0:00:29]} (23. g5 $1 $15) 23... Qxf6 (23... Rxf6 $6 24. Bf2 Qh6 25. Be3 $11) 24. c4 {[%emt 0:00:26]} b6 {[%emt 0:00:46]} 25. d5 {[%emt 0:01:07]} Bd7 {[%emt 0:00:07][%cal Od7g4]} 26. Nd4 $2 {[%emt 0:00:13][%mdl 8192] [#]} Qh4 $2 {[%emt 0:00:23]} (26... Bxg4 $1 $19 {Weiss muss nun ...Qh4 beachten.} 27. Ne2 Qe5) 27. Bf2 $15 {[%emt 0:00:28]} Qf6 {[%emt 0:00:11]} 28. Bxf3 {[%emt 0:00:07]} exf3 $40 {[%emt 0:00:07][%mdl 128] Schwarz hat einigen Angriff.} 29. Qd2 $2 {[%emt 0:00:05]} (29. Rb3 $11 {und Weiss muss sich keine Sorgen machen.}) 29... h5 $19 {[%emt 0:00:11]} 30. g5 {[%emt 0:00:08]} (30. Rb3 {ist eine bessere Verteidigung.} hxg4 31. hxg4) 30... Qf4 $2 {[%emt 0:00:31]} (30... Qd6 $19 {ist viel giftiger.} 31. Rfe1 Bxh3) 31. Qxf4 $17 {[%emt 0:00:09]} Rxf4 {[%emt 0:00:02]} 32. Ne6 {[%emt 0:00:05]} Bxe6 {[%emt 0:00:11]} (32... Rxc4 $2 33. Nxd8 Be5 34. Rfe1 $18) 33. dxe6 {[%emt 0:00:01]} Rxc4 {[%emt 0:00:13]} 34. Rbd1 {[%emt 0:00:04]} Rxd1 ({Besser ist} 34... Re8 $17 35. Rd7 Rxe6) 35. Rxd1 {[%mdl 4096] Endspiel. KRB-KRB} Re4 {[%emt 0:01:03]} 36. Rd3 $2 {[%emt 0:00:15]} (36. Rd8+ $15 Bf8 37. Re8) 36... Rxe6 $19 {[%emt 0:00:13]} 37. Rxf3 {[%emt 0:00:01]} Bf8 {[%emt 0:00:08] Gegen Ra3 gerichtet.} 38. Kg2 {[%emt 0:00:02] [#]} Re2 {[%emt 0:00:04]} (38... Be7 $1 $19 {[%cal Oe6e2] Droht stark ...Re2!} 39. Kg3 Bxg5) 39. a4 $2 {[%emt 0:00:03][%mdl 8192]} (39. Kf1 $17 Re4 (39... Rxa2 40. Rf6 $17) 40. Rf6) 39... Bc5 {[%emt 0:00:07] ( -> ...Rxf2+)} 40. Kf1 {[%emt 0:00:09]} Rxf2+ {[%emt 0:00:03] Schwarz setzt Matt.} 41. Rxf2 {[%emt 0:00:01]} Bxf2 42. Kxf2 {KP-KP} Kf7 {[%emt 0:00:03]} 43. Ke3 {[%emt 0:00:00]} Ke6 {[%emt 0:00:01]} 44. Kd4 {[%emt 0:00:04]} a6 {[%emt 0:00:08]} 45. Ke4 {[%emt 0:00:02]} b5 {[%emt 0:00:04]} 46. a5 {[%emt 0:00:03]} Kd6 {[%emt 0:00:09]} 47. Kd4 {[%emt 0:00:02]} Kc6 {[%emt 0:00:04]} 48. Ke5 {[%emt 0:00:03]} b4 {[%emt 0:00:02]} 49. Kf6 {[%emt 0:00:03]} b3 {[%emt 0:00:01]} 50. Kxg6 {[%emt 0:00:00]} b2 {[%emt 0:00:01]} 51. Kxh5 {[%emt 0:00:01]} b1=Q {[%emt 0:00:04]} ({Und nicht} 51... b1=B 52. g6 Kd7 53. g7 $11) 52. g6 {[%emt 0:00:02]} Qf5+ {[%emt 0:00:08]} 53. Kh4 {[%emt 0:00:01]} Kb5 {[%emt 0:00:09]} 54. g7 {[%emt 0:00:03]} Qh7+ {[%emt 0:00:01] Gewichteter Fehlerwert: Weiß=0.44/Schwarz=0.25 (präzise) .  Verlustzug:     	Weiß=4     	---        Gewinn verpasst:   	---       	Schwarz=1     Fehler:       	Weiß=3     	Schwarz=3     Ungenau:       	Weiß=1     	Schwarz=2     OK:         	Weiß=14    	Schwarz=12    Bester:       	Weiß=3     	Schwarz=2} ({Schwächer ist} 54... Kxa5 55. g8=Q $17) 0-1

[Event "Memorial Ukrainian Chess Warriors 2024"]
[Site "Lviv"]
[Date "2024.03.15"]
[Round "8.12"]
[White "Andrienko, Artem"]
[Black "Starozhilov, Leonid"]
[Result "0-1"]
[ECO "A04"]
[WhiteElo "2041"]
[BlackElo "2285"]
[Annotator "TA"]
[PlyCount "61"]
[EventDate "2024.03.06"]
[EventType "swiss"]
[EventCountry "UKR"]
[SourceTitle "playchess.com"]
[Source "ChessBase"]
[SourceQuality "1"]
[TimeControl "600+5"]

{[%evp 9,61,-16,-6,-8,-7,-14,-9,-44,-6,-20,-5,-15,0,-8,0,-11,0,-2,0,-18,8,-20,0,0,0,-33,-47,-108,-65,-103,-87,-162,-108,-186,-172,-170,-188,-239,-175,-330,-306,-374,-368,-548,-402,-396,-375,-519,-465,-1082,-501,-29984,-29985,-29998]} 1. Nf3 g6 2. e4 Bg7 3. h4 h6 4. d3 c5 5. g3 Nc6 6. Bg2 d6 7. O-O Nf6 8. c3 {The position is equal.} Bg4 9. Nbd2 O-O 10. Re1 Nd7 11. a4 a6 12. Qb3 Rb8 13. Nh2 Be6 14. Qc2 Nde5 15. h5 Ng4 16. Nxg4 Bxg4 17. Bf3 gxh5 ({Worse is} 17... Bxh5 18. g4 $16) 18. Qd1 (18. Bd1 $15) 18... Qd7 19. Nc4 {[#]} f5 $1 20. Bxg4 (20. Nb6 $17 Qe6 21. Bf4) 20... hxg4 (20... fxg4 $19 21. Bf4 h4) 21. exf5 (21. Kg2 $17) 21... Qxf5 $19 22. Qe2 h5 23. a5 (23. Bf4 {is a better defense.}) 23... Rf7 24. Kg2 $2 (24. Bf4) 24... Rbf8 25. Rf1 d5 26. Ne3 (26. Nb6 $142) 26... Qd7 27. Nc2 Ne5 {White must now prevent ...Nf3.} 28. d4 Nf3 {And now ...h4 would win.} 29. Be3 (29. Bf4 $142) 29... Qf5 (29... Qe6 $142 {...Qe4 would now be deadly.} 30. Rg1 Qe4 (30... Nxg1 $2 31. Kxg1 $19)) 30. Rad1 {[#]} (30. Bf4 $19) 30... Qe4 31. Qe1 {Weighted Error Value: White=0.89/Black=0.38.  Mistake:       	White=8     	Black=2      Inaccurate:     	White=5     	Black=3      OK:         	White=3     	Black=5      Strong:       	---       	Black=1} 0-1

[Event "Memorial Ukrainian Chess Warriors 2024"]
[Site "Lviv"]
[Date "2024.03.15"]
[Round "8.13"]
[White "Petrov, Vladimir Sergeev"]
[Black "Pankiv, Maksym"]
[Result "1-0"]
[ECO "A17"]
[WhiteElo "2349"]
[BlackElo "1795"]
[Annotator "TA"]
[PlyCount "91"]
[EventDate "2024.03.06"]
[EventType "swiss"]
[EventCountry "UKR"]
[SourceTitle "playchess.com"]
[Source "ChessBase"]
[SourceQuality "1"]
[TimeControl "600+5"]

{[%evp 9,91,36,47,33,48,36,62,58,69,75,79,71,81,82,85,56,54,61,72,53,88,87,106,97,125,120,122,113,103,100,111,114,121,89,110,110,125,134,125,125,111,48,95,66,75,62,134,88,90,93,122,87,406,389,517,512,519,515,528,510,835,791,1755,1708,1629,1061,953,306,302,276,352,219,234,225,558,531,537,535,954,917,29963,6508,5816,5653]} 1. c4 {[%emt 0:00:04]} Nf6 {[%emt 0:00:02]} 2. Nc3 {[%emt 0:00:01]} e6 {[%emt 0:00:02]} 3. Nf3 {[%emt 0:00:03]} b6 {[%emt 0:00:04]} 4. e4 {[%emt 0:00:03]} Bb7 {[%emt 0:00:30]} 5. Bd3 {[%emt 0:00:02]} d6 {[%emt 0:00:06]} 6. O-O {[%emt 0:00:03]} Nbd7 {[%emt 0:00:07]} 7. Re1 {[%emt 0:00:02]} e5 {[%emt 0:00:02]} 8. Bc2 {[%emt 0:00:17] White is slightly better.} g6 {[%emt 0:00:08]} 9. d4 {[%emt 0:00:06][%cal Oc4c5,Bd2d4,Bd4d5][%mdl 32]} Bg7 {[%emt 0:00:23]} 10. d5 {[%emt 0:00:20]} O-O {[%emt 0:00:05]} 11. Bg5 {[%emt 0:00:02]} h6 {[%emt 0:00:06]} 12. Bh4 {[%emt 0:00:01] White is more active.} a5 {[%emt 0:00:23]} 13. Nd2 {[%emt 0:00:09]} Nc5 {[%emt 0:00:18]} 14. f3 {[%emt 0:00:12]} Qd7 {[%emt 0:00:13]} 15. a3 Na6 {[%emt 0:01:45][%cal Bc5a6,Ba6b8,Bb8d7][%mdl 32]} 16. Rb1 {[%emt 0:01:02]} Qc8 {[%emt 0:00:32]} 17. b4 {[%emt 0:00:04]} Nb8 {[%emt 0:00:11]} 18. Nb3 {[%emt 0:00:55]} axb4 {[%emt 0:00:10]} 19. axb4 {[%emt 0:00:02]} Nbd7 {[%emt 0:00:01]} 20. Bf2 {[%emt 0:00:09]} Nh5 {[%emt 0:00:26]} 21. c5 {[%emt 0:00:02]} bxc5 {[%emt 0:00:28]} 22. bxc5 {[%emt 0:00:01] Threatens to win with c6.} dxc5 {[%emt 0:00:54]} 23. Nxc5 {[%emt 0:00:06]} Nxc5 {[%emt 0:00:01]} 24. Bxc5 {[%emt 0:00:02]} Rd8 {[%emt 0:00:24]} 25. Qe2 {[%emt 0:01:54]} (25. Qd2 $16) 25... Ba6 {[%emt 0:00:22]} (25... c6 $14) 26. Qe3 {[%emt 0:00:06]} Nf4 {[%emt 0:00:31]} 27. g3 {[%emt 0:00:44]} Nh3+ {[%emt 0:00:19]} ({Black should play} 27... c6 $14) 28. Kh1 {[%emt 0:00:10]} (28. Kg2 $142) 28... h5 {[%emt 0:00:37]} 29. Ba4 {[%emt 0:02:36] Bc6 is the strong threat.} Kh7 {[%emt 0:00:34] [#]} 30. Qd2 {[%emt 0:00:42]} f5 $2 {[%emt 0:01:14][%mdl 8192] This move loses the game for Black.} (30... Bh6 $16 {is more resistant.} 31. Qa2 Bd3) 31. Bc6 $18 {[%emt 0:00:12]} Rb8 {[%emt 0:00:55]} 32. Rxb8 {[%emt 0:00:37]} Qxb8 {[%emt 0:00:01]} 33. exf5 {[%emt 0:00:14]} gxf5 {[%emt 0:00:18]} 34. Kg2 {[%emt 0:00:08]} Bh6 {[%emt 0:00:01]} (34... Qb3 $142 35. Kxh3 Bf6) 35. Qc2 {[%emt 0:00:01]} Ng5 {[%emt 0:00:34]} 36. Qxf5+ {[%emt 0:00:08]} Kh8 {[%emt 0:00:02]} 37. Rb1 {[%emt 0:00:24]} Qc8 {[%emt 0:00:07]} 38. Qxc8 $2 {[%emt 0:00:31] [#]} (38. Qxe5+ Kg8 39. d6 Qh3+ 40. Kh1) 38... Rxc8 {[%emt 0:00:01]} 39. h4 {[%emt 0:00:07]} Nf7 {[%emt 0:00:00]} 40. Ne4 {[%emt 0:00:04]} Bd3 {[%emt 0:00:13]} 41. Rb7 {[%emt 0:00:37] Strongly threatening Bd7.} Ra8 $2 {[%emt 0:00:12]} (41... Nd8 {is a better chance.}) 42. Rxc7 {[%emt 0:00:06]} Ra2+ {[%emt 0:00:01]} 43. Nf2 {[%emt 0:00:02]} Kg7 {[%emt 0:00:10]} 44. Be8 {[%emt 0:00:07]} Be3 {[%emt 0:00:05]} 45. Rxf7+ {[%emt 0:00:06]} Kg8 {[%emt 0:00:01]} 46. Bxe3 {[%emt 0:00:02] Weighted Error Value: White=0.36/Black=0.67.  Loses game:     	---       	Black=1      Mistake:       	White=2     	Black=4      Inaccurate:     	White=3     	Black=7      OK:         	White=14    	Black=7      Best:        	White=3     	Black=1} 1-0

[Event "Memorial Ukrainian Chess Warriors 2024"]
[Site "Lviv"]
[Date "2024.03.15"]
[Round "8.14"]
[White "Dehtiarov, Roman"]
[Black "Terletsky, Oleg A."]
[Result "1-0"]
[ECO "B01"]
[WhiteElo "2319"]
[BlackElo "2036"]
[Annotator "TA"]
[PlyCount "81"]
[EventDate "2024.03.06"]
[EventType "swiss"]
[EventCountry "UKR"]
[SourceTitle "playchess.com"]
[Source "ChessBase"]
[SourceQuality "1"]
[TimeControl "600+5"]

{[%evp 9,81,24,40,43,64,44,81,74,91,0,34,22,27,0,77,64,116,85,122,126,120,124,294,292,289,200,188,197,222,222,461,487,662,695,597,400,482,466,543,468,445,442,419,335,520,495,550,490,522,525,471,329,341,333,795,781,761,733,3510,2438,29985,29986,29991,29987,29987,29988,29989,29990,29990,29989,29989,29989,29989,867]} 1. e4 {[%emt 0:00:02]} d5 {[%emt 0:00:01]} 2. exd5 Qxd5 {[%emt 0:00:02]} 3. Nc3 {[%emt 0:00:03]} Qd6 {[%emt 0:00:00]} 4. Nf3 {[%emt 0:00:03]} Bg4 {[%emt 0:00:02]} 5. Be2 {[%emt 0:00:04]} Nc6 {[%emt 0:00:06]} 6. h3 {[%emt 0:00:20]} Bf5 {[%emt 0:00:13]} 7. O-O {[%emt 0:00:24]} e5 {[%emt 0:00:10] [#]} 8. d4 $1 {[%emt 0:00:52] Weiß steht besser.} O-O-O {[%emt 0:01:15]} (8... Nxd4 9. Nxd4) 9. Nb5 {[%emt 0:00:59]} (9. d5 $16) 9... Qe7 {[%emt 0:00:22]} 10. d5 {[%emt 0:00:53]} a6 {[%emt 0:00:12] Verhindert c4.} 11. Na3 Nf6 {[%emt 0:00:18]} (11... Nd4 $11) 12. c4 $16 {[%emt 0:00:44]} h6 {[%emt 0:00:39]} (12... Nb4 $14) 13. Be3 {[%emt 0:00:41]} e4 {[%emt 0:00:36]} 14. Nd4 $36 {[%emt 0:00:15][%mdl 2048] Schwarz muss aufpassen.} Nxd4 {[%emt 0:00:16]} 15. Qxd4 {[%emt 0:00:02]} b6 $2 {[%emt 0:00:39] Führt Schwarz ins Verderben.} (15... c5 $16 {war angesagt.} 16. Qd2 Nd7) 16. Qc3 $18 {[%emt 0:02:25]} Qb4 {[%emt 0:00:20] [#] ...Qxc3 wäre nun fies.} 17. Qe5 {[%emt 0:00:01]} Bg6 {[%emt 0:00:15]} 18. Nc2 {[%emt 0:00:04]} Qd6 {[%emt 0:00:35]} 19. Qc3 {[%emt 0:00:02] Zielt auf b4 ab.} Nd7 $2 {[%emt 0:00:31]} (19... Bh5 {war einen Versuch wert.}) 20. b4 {[%emt 0:00:29][%cal Bb2b4,Bb4b5][%mdl 32]} c5 {[%emt 0:00:46]} 21. dxc6 {[%emt 0:01:43]} Qxc6 {[%emt 0:00:02]} 22. b5 {[%emt 0:00:27]} Qc7 {[%emt 0:00:26]} 23. bxa6 {[%emt 0:00:07]} Bc5 {[%emt 0:00:08]} 24. Nb4 {[%emt 0:00:29] Droht stark Nd5.} Qe5 {[%emt 0:00:40]} 25. Qxe5 {[%emt 0:00:25]} Nxe5 {[%emt 0:00:04]} 26. Nd5 {[%emt 0:00:02]} Rd6 {[%emt 0:00:42]} (26... Bxe3 $142 27. fxe3 Kb8) 27. Rab1 {[%emt 0:00:05]} Nd7 {[%emt 0:00:21]} 28. Rb5 {[%emt 0:00:32]} Bxe3 {[%emt 0:00:10]} 29. fxe3 {[%emt 0:00:01]} Kb8 {[%emt 0:00:03]} 30. Bg4 {[%emt 0:00:03] Und jetzt Bxd7 wäre schön.} f5 {[%emt 0:00:17]} 31. Bxf5 {[%emt 0:00:03]} Ka7 $2 {[%emt 0:00:08]} (31... Bxf5 32. Rxf5 Nf6 33. Nxf6 (33. Rxb6+ Rxb6 34. Nxb6 Ka7 $18) (33. Nxb6 Ka7 $18) 33... gxf6) 32. Bxg6 {[%emt 0:00:02]} Rxg6 {[%emt 0:00:02]} 33. Rf7 {[%emt 0:00:02]} Rd8 34. Nb4 {Droht Matt per Rd5.} Ka8 {[%emt 0:00:39]} 35. Rd5 {[%emt 0:00:09] Weiß setzt Matt.} Rf8 {[%emt 0:01:05]} 36. Rdxd7 {[%emt 0:00:03][%cal Rf7f8]} Rxf7 {[%emt 0:00:09]} 37. Rxf7 {[%emt 0:00:01]} h5 {[%emt 0:00:10]} 38. Nd5 {[%emt 0:00:01]} Rc6 {[%emt 0:00:15]} 39. Nc7+ {[%emt 0:00:02]} Kb8 {[%emt 0:00:05]} 40. Nb5 {[%emt 0:00:03]} Rc8 {[%emt 0:00:22]} 41. Rb7+ {[%emt 0:00:01] Gewichteter Fehlerwert: Weiß=0.31/Schwarz=0.59.  Verlustzug:     	---       	Schwarz=1     Fehler:       	Weiß=1     	Schwarz=5     Ungenau:       	Weiß=3     	Schwarz=4     OK:         	Weiß=9     	Schwarz=6     Bester:       	Weiß=2     	Schwarz=2} (41. Rxg7 $142 Ka8 42. Ra7+ Kb8 43. Rb7+ Ka8 44. Nc7+ (44. Rxb6 h4 $18) 44... Rxc7 45. Rxc7 Kb8 46. Rb7+ Ka8 47. h4 (47. Rxb6 Ka7 48. c5 Ka8 49. c6 Ka7 50. Rb1 Kxa6 51. c7 Ka5 52. c8=R h4 53. Ra8#)) 1-0